bitfinex/quotes_SOLUSD_20250731
["timestamp","ask_amount","ask_price","bid_price","bid_amount"]
[1753985545356,0.72,176.53,176.5,43.14]
[1753985545653,9.87753815,176.51,176.46,2.87321071]
[1753985545829,9.87753815,176.5,176.47,43.14]
[1753985546234,0.72,176.51,176.47,53.01753815]
[1753985546429,0.72,176.51,176.48,9.87753815]
[1753985546657,0.72,176.51,176.49,43.12]
[1753985546954,0.72,176.51,176.5,43.1]
[1753985547452,0.75950316,176.56,176.5,52.97753815]
[1753985547453,0.2,176.56,176.5,52.97753815]
[1753985547656,0.2,176.56,176.53,9.87753815]
[1753985547954,0.2,176.56,176.55,9.87753815]
[1753985548754,0.92,176.56,176.55,9.87753815]
[1753985548936,0.2,176.56,176.55,9.87753815]
[1753985549338,0.2,176.56,176.55,52.93753815]
[1753985550053,0.2,176.56,176.55,52.89753815]
[1753985550430,10.79753815,176.56,176.55,43.02]
[1753985550827,14.87646248,176.56,176.55,43.02]
[1753985551231,0.92,176.56,176.52,19.62124748]
[1753985551450,0.72,176.55,176.53,43.0]
[1753985551851,0.2,176.56,176.53,57.52293843]
[1753985552160,0.2,176.56,176.55,13.95646248]
[1753985552361,0.2,176.56,176.55,14.52287426]
[1753985552736,0.2,176.56,176.55,20.18699207]
[1753985553248,0.2,176.56,176.55,63.14699207]
[1753985553441,0.2,176.56,176.55,49.19052959]
[1753985553653,0.2,176.56,176.55,63.14699207]
[1753985554244,14.84646248,176.56,176.51,5.66534044]
[1753985554446,0.657283,176.55,176.52,56.89646248]
[1753985554651,0.2,176.56,176.52,56.89646248]
[1753985554850,14.15646248,176.56,176.52,56.89646248]
[1753985555047,0.2,176.56,176.53,13.95646248]
[1753985555265,0.2,176.56,176.54,42.92]
[1753985555443,0.2,176.56,176.52,13.95646248]
[1753985555647,13.95646248,176.53,176.45,71.03468599]
[1753985555846,13.95646248,176.51,176.47,13.95646248]
[1753985556579,0.69,176.53,176.49,13.95646248]
[1753985556738,13.95646248,176.54,176.5,42.9]
[1753985556938,13.95646248,176.51,176.45,5.66732785]
[1753985557250,14.64646248,176.5,176.46,42.9]
[1753985557450,14.64646248,176.49,176.45,5.66732785]
[1753985557638,0.69,176.48,176.46,42.88]
[1753985557839,14.64646248,176.47,176.39,5.66925562]
[1753985558153,0.69,176.47,176.43,13.95646248]
[1753985558348,0.69,176.46,176.44,42.88]
[1753985559035,14.64646248,176.49,176.44,62.50392408]
[1753985559232,26.0,176.54,176.46,13.95646248]
[1753985559233,0.55950316,176.53,176.46,13.95646248]
[1753985559438,13.95646248,176.51,176.47,42.84]
[1753985559635,22.44948931,176.53,176.44,19.62392408]
[1753985559636,13.95646248,176.49,176.44,19.62392408]
[1753985559936,23.00899247,176.53,176.44,19.62392408]
[1753985559937,0.69,176.48,176.45,42.86]
[1753985560338,0.69,176.51,176.46,13.95646248]
[1753985560540,14.64646248,176.5,176.45,56.81646248]
[1753985560862,14.64646248,176.49,176.45,42.86]
[1753985561161,14.64646248,176.48,176.43,19.62415034]
[1753985561360,0.69,176.47,176.44,42.86]
[1753985561733,0.69,176.46,176.44,42.86]
[1753985562270,0.69,176.49,176.45,13.95646248]
[1753985562435,14.64646248,176.52,176.47,26.0]
[1753985562641,14.64646248,176.51,176.48,42.82]
[1753985563042,0.69,176.5,176.48,42.82]
[1753985563462,14.64646248,176.52,176.48,42.82]
[1753985563851,0.69,176.51,176.48,42.82]
[1753985564570,0.69,176.53,176.48,48.48628712]
[1753985564874,0.69,176.51,176.48,62.4427496]
[1753985566471,0.69,176.53,176.48,62.4427496]
[1753985566770,0.69,176.52,176.48,62.4427496]
[1753985567157,0.69,176.52,176.48,48.48628712]
[1753985567351,6.22371571,176.55,176.48,48.48628712]
[1753985567352,0.55950316,176.55,176.48,48.48628712]
[1753985567553,0.69,176.55,176.51,13.95646248]
[1753985567760,0.69,176.55,176.52,56.65646248]
[1753985567954,0.2,176.56,176.53,13.95646248]
[1753985568475,0.89,176.56,176.53,13.95646248]
[1753985568673,0.89,176.56,176.55,13.95646248]
[1753985568674,0.2,176.56,176.55,13.95646248]
[1753985568853,0.2,176.56,176.55,56.63646248]
[1753985569043,0.2,176.56,176.55,57.24287426]
[1753985569252,0.2,176.56,176.55,62.90699207]
[1753985569758,0.2,176.56,176.55,62.86699207]
[1753985570141,0.2,176.56,176.55,62.90699207]
[1753985570346,1e-08,176.56,176.55,88.90699207]
[1753985570560,1e-08,176.56,176.55,62.90699207]
[1753985571070,1e-08,176.56,176.55,68.70993553]
[1753985572366,1e-08,176.56,176.55,48.91052959]
[1753985572573,1e-08,176.56,176.55,68.66993553]
[1753985573279,1e-08,176.56,176.55,48.91052959]
[1753985573569,1e-08,176.56,176.55,84.79023256]
[1753985574078,1e-08,176.56,176.55,94.70993553]
[1753985574370,1e-08,176.56,176.55,42.11023256]
[1753985574570,1e-08,176.56,176.54,5.66442088]
[1753985574767,1e-08,176.56,176.55,52.55970297]
[1753985574957,1e-08,176.56,176.54,5.66442088]
[1753985575158,0.69,176.55,176.53,15.54436705]
[1753985575471,1e-08,176.56,176.53,15.54436705]
[1753985575653,1e-08,176.56,176.54,42.66]
[1753985575848,1e-08,176.56,176.54,52.53970297]
[1753985576168,0.69000001,176.56,176.55,3.62689246]
[1753985576368,1e-08,176.56,176.55,13.50659543]
[1753985576949,1e-08,176.56,176.55,3.62689246]
[1753985577150,1e-08,176.56,176.55,16.11023256]
[1753985578055,1e-08,176.56,176.55,42.11023256]
[1753985578571,1e-08,176.56,176.55,51.98993553]
[1753985579154,1e-08,176.56,176.55,42.11023256]
[1753985579349,1e-08,176.56,176.55,26.02993553]
[1753985579568,1e-08,176.56,176.55,82.32993553]
[1753985580355,1e-08,176.56,176.55,124.92993553]
[1753985580670,1e-08,176.56,176.55,124.36352375]
[1753985581461,1e-08,176.56,176.55,124.32352375]
[1753985581665,1e-08,176.56,176.55,87.96411781]
[1753985581981,0.69000001,176.56,176.55,58.18382078]
[1753985582158,1e-08,176.56,176.55,58.18382078]
[1753985582355,1e-08,176.56,176.55,58.75023256]
[1753985582648,1e-08,176.56,176.55,68.62993553]
[1753985582850,1e-08,176.56,176.55,68.66993553]
[1753985583052,1e-08,176.56,176.55,58.75023256]
[1753985583348,1e-08,176.56,176.55,68.62993553]
[1753985583552,1e-08,176.56,176.55,6.23052959]
[1753985583772,1e-08,176.56,176.55,58.75023256]
[1753985584682,0.71000001,176.56,176.55,61.96411781]
[1753985584987,0.71000001,176.56,176.55,104.62411781]
[1753985585192,1e-08,176.56,176.55,115.07023256]
[1753985585362,1e-08,176.56,176.55,114.50382078]
[1753985585563,0.71000001,176.56,176.55,114.50382078]
[1753985585877,0.71000001,176.56,176.55,56.3]
[1753985586062,0.71000001,176.56,176.55,98.9]
[1753985586258,0.71000001,176.56,176.55,114.44382078]
[1753985586659,1e-08,176.56,176.55,114.44382078]
[1753985586975,0.71000001,176.56,176.55,114.44382078]
[1753985587658,1e-08,176.56,176.55,114.44382078]
[1753985589156,1e-08,176.56,176.55,124.36352375]
[1753985590875,1e-08,176.56,176.55,81.76352375]
[1753985591081,1e-08,176.56,176.55,124.84993553]
[1753985591381,1e-08,176.56,176.55,124.28352375]
[1753985591984,0.03,176.6,176.58,26.0]
[1753985592198,0.03,176.6,176.59,52.96598645]
[1753985593789,0.71,176.65,176.62,26.0]
[1753985593966,0.71,176.65,176.64,9.87970297]
[1753985594163,0.71,176.68,176.64,15.54093485]
[1753985594393,0.71,176.68,176.67,9.87970297]
[1753985594577,0.71,176.68,176.67,52.39970297]
[1753985595460,0.71,176.7,176.67,52.39970297]
[1753985595680,0.71,176.69,176.68,0.56599501]
[1753985595880,0.71,176.69,176.68,10.44569798]
[1753985596185,0.03,176.71,176.68,10.44569798]
[1753985596484,0.71,176.69,176.68,0.56599501]
[1753985596687,0.71,176.69,176.62,26.0]
[1753985597007,16.78468397,176.68,176.63,42.5]
[1753985597165,0.71,176.67,176.63,42.5]
[1753985597366,0.71,176.66,176.63,42.5]
[1753985597680,0.71,176.65,176.62,26.28974702]
[1753985597868,0.71,176.65,176.63,42.5]
[1753985598060,0.71,176.64,176.63,58.04125536]
[1753985598461,0.71,176.66,176.63,58.04125536]
[1753985598665,16.78468397,176.68,176.64,9.87970297]
[1753985598862,0.71,176.65,176.63,5.66155239]
[1753985599080,0.03,176.71,176.64,42.5]
[1753985599284,26.66438694,176.66,176.64,42.5]
[1753985599663,0.71,176.65,176.64,42.5]
[1753985600070,0.71,176.65,176.63,15.54123109]
[1753985600295,0.71,176.65,176.64,42.5]
[1753985600497,0.71,176.65,176.64,52.37970297]
[1753985600695,17.49468397,176.68,176.64,52.37970297]
[1753985600898,0.71,176.67,176.65,10.16936893]
[1753985601101,0.71,176.67,176.66,42.5]
[1753985601298,0.71,176.69,176.66,52.37970297]
[1753985601481,0.71,176.69,176.67,0.28953761]
[1753985601672,0.71,176.69,176.68,42.5]
[1753985601874,0.03,176.71,176.68,52.37970297]
[1753985602087,0.03,176.71,176.7,9.87970297]
[1753985602399,0.74,176.71,176.7,52.37970297]
[1753985603181,0.74,176.71,176.7,42.5]
[1753985603782,16.78468397,176.7,176.63,26.0]
[1753985603995,9.87970297,176.68,176.64,52.37970297]
[1753985604186,0.71,176.67,176.64,48.16113545]
[1753985604490,0.71,176.66,176.65,42.5]
[1753985605479,9.87970297,176.68,176.65,42.5]
[1753985605786,10.61970297,176.71,176.66,9.87970297]
[1753985606092,9.87970297,176.69,176.67,42.5]
[1753985606286,0.71,176.69,176.67,42.5]
[1753985606487,0.71,176.69,176.67,48.16025169]
[1753985606799,0.71,176.68,176.67,42.5]
[1753985607202,10.58970297,176.7,176.67,42.5]
[1753985607394,0.71,176.69,176.67,42.5]
[1753985607589,9.87970297,176.7,176.67,42.5]
[1753985607796,0.71,176.68,176.67,42.5]
[1753985607995,10.58970297,176.68,176.66,0.28952214]
[1753985608197,6.39643382,176.71,176.67,42.48]
[1753985608400,9.87970297,176.68,176.67,42.48]
[1753985608708,10.58970297,176.68,176.67,42.48]
[1753985609199,27.37438694,176.68,176.67,42.48]
[1753985609907,27.37438694,176.68,176.59,0.88971798]
[1753985609908,16.78468397,176.67,176.57,9.87970297]
[1753985610098,9.87970297,176.62,176.58,42.48]
[1753985610283,0.71,176.62,176.58,50.93774416]
[1753985610484,10.58970297,176.62,176.58,50.93774416]
[1753985610678,10.58970297,176.61,176.58,2.79467572]
[1753985610879,10.58970297,176.6,176.56,5.663797]
[1753985611074,10.58970297,176.6,176.57,42.48]
[1753985611400,9.87970297,176.59,176.57,42.48]
[1753985611594,5.66198986,176.62,176.57,42.48]
[1753985611595,10.58970297,176.58,176.57,42.48]
[1753985611784,0.71,176.58,176.57,42.48]
[1753985612102,10.58970297,176.58,176.57,42.48]
[1753985612596,9.87970297,176.59,176.57,42.48]
[1753985613299,10.58970297,176.59,176.57,42.48]
[1753985613500,10.58970297,176.58,176.57,42.48]
[1753985613694,10.58970297,176.58,176.56,42.48]
[1753985614001,10.58970297,176.57,176.56,42.48]
[1753985614502,10.58970297,176.57,176.55,56.36]
[1753985614503,5.663797,176.56,176.55,56.36]
[1753985614686,33.00818394,176.56,176.55,56.36]
[1753985615083,27.34438694,176.56,176.55,56.36]
[1753985616102,27.34438694,176.56,176.55,0.06]
[1753985616303,28.05236156,176.56,176.55,0.06]
[1753985616503,33.71615856,176.56,176.55,0.06]
[1753985617216,33.00818394,176.56,176.55,0.06]
[1753985620025,68.88788691,176.56,176.55,0.06]
[1753985620384,16.78468397,176.54,176.53,0.06]
[1753985620591,16.78468397,176.54,176.48,0.06]
[1753985620592,16.78468397,176.51,176.48,0.06]
[1753985620910,26.66438694,176.49,176.48,0.06]
[1753985621292,27.34438694,176.49,176.48,0.06]
[1753985621801,28.05264236,176.49,176.48,0.06]
[1753985622597,33.71868576,176.49,176.48,0.06]
[1753985622820,33.71868576,176.49,176.46,0.06]
[1753985623004,52.66438694,176.47,176.46,0.06]
[1753985623208,53.37272263,176.47,176.46,0.06]
[1753985623517,54.05272263,176.47,176.46,0.06]
[1753985624819,59.71940818,176.47,176.46,0.06]
[1753985625321,102.21940818,176.47,176.46,0.06]
[1753985633929,116.38612206,176.47,176.38,56.36]
[1753985634105,26.66438694,176.39,176.38,0.06]
[1753985635216,9.87970297,176.39,176.38,0.72]
[1753985636127,9.87970297,176.39,176.38,0.06]
[1753985637995,16.22895859,176.39,176.38,0.06]
[1753985640298,9.87970297,176.39,176.38,0.06]
[1753985640510,15.54895859,176.39,176.38,0.06]
[1753985640914,17.49326058,176.41,176.38,0.06]
[1753985641118,0.68,176.43,176.38,0.06]
[1753985641119,26.66438694,176.39,176.38,0.72]
[1753985641325,33.72229951,176.39,176.38,0.06]
[1753985642114,33.04229951,176.39,176.38,0.06]
[1753985642331,33.72229951,176.39,176.38,0.06]
[1753985644835,76.20229951,176.39,176.38,0.06]
[1753985645231,76.22229951,176.39,176.38,0.06]
[1753985646032,76.22229951,176.39,176.38,1e-08]
[1753985647209,56.83428544,176.37,176.36,0.06]
[1753985647409,100.02302275,176.37,176.36,0.06]
[1753985647639,100.72302275,176.37,176.36,0.06]
[1753985648918,100.02302275,176.37,176.36,0.06]
[1753985649637,94.35312425,176.37,176.36,0.06]
[1753985649811,56.83428544,176.37,176.36,0.06]
[1753985650214,32.33428544,176.37,176.36,0.06]
[1753985650413,33.03428544,176.37,176.36,0.06]
[1753985650616,33.74302275,176.37,176.36,0.06]
[1753985650827,23.86331978,176.37,176.36,0.06]
[1753985651134,33.74302275,176.37,176.36,0.06]
[1753985651331,16.78468397,176.33,176.3,0.1]
[1753985651532,9.87970297,176.31,176.3,0.1]
[1753985652213,27.37336544,176.31,176.3,0.1]
[1753985652410,28.07336544,176.31,176.3,0.1]
[1753985652615,70.53336544,176.31,176.3,0.1]
[1753985653149,96.53336544,176.31,176.3,0.1]
[1753985653315,102.20519347,176.31,176.3,0.1]
[1753985654113,101.50519347,176.31,176.3,0.1]
[1753985654434,59.04519347,176.31,176.3,0.1]
[1753985655239,58.33621497,176.31,176.3,0.1]
[1753985655427,59.03621497,176.31,176.3,0.1]
[1753985655749,58.33621497,176.31,176.3,0.1]
[1753985655922,32.33621497,176.31,176.3,0.1]
[1753985656116,16.78468397,176.31,176.3,0.1]
[1753985656445,26.66438694,176.31,176.3,0.1]
[1753985656629,32.33621497,176.31,176.3,0.1]
[1753985656939,33.04519347,176.31,176.3,0.1]
[1753985657139,22.456512,176.31,176.3,0.1]
[1753985657345,32.33621497,176.31,176.3,0.1]
[1753985657658,22.456512,176.31,176.3,0.1]
[1753985657822,32.33621497,176.31,176.3,0.1]
[1753985658541,33.03621497,176.31,176.3,0.1]
[1753985658717,36.74882787,176.31,176.3,0.1]
[1753985658917,37.45780637,176.31,176.3,0.1]
[1753985660434,16.78468397,176.3,176.22,0.66]
[1753985660636,9.87970297,176.23,176.2,8.45270458]
[1753985660824,9.87970297,176.23,176.21,0.66]
[1753985661651,9.87970297,176.23,176.22,0.66]
[1753985662348,6.38272146,176.26,176.22,0.66]
[1753985662532,9.87970297,176.25,176.23,0.66]
[1753985662722,6.38218175,176.28,176.24,0.66]
[1753985662923,9.87970297,176.25,176.24,0.66]
[1753985663463,9.87970297,176.25,176.22,0.66]
[1753985664013,9.87970297,176.25,176.2,9.87970297]
[1753985664217,9.87970297,176.25,176.23,0.66]
[1753985664445,9.87970297,176.25,176.24,0.66]
[1753985664819,9.87970297,176.25,176.21,0.66]
[1753985665019,9.87970297,176.25,176.2,5.67527186]
[1753985665020,9.87970297,176.24,176.2,15.55497483]
[1753985665233,9.87970297,176.24,176.22,0.66]
[1753985665751,5.6731151,176.27,176.22,0.66]
[1753985665932,9.4001013,176.27,176.23,0.66]
[1753985666140,9.87970297,176.25,176.23,0.66]
[1753985666445,9.87970297,176.25,176.2,15.55500344]
[1753985666642,9.87970297,176.24,176.2,5.67534005]
[1753985666842,9.87970297,176.24,176.21,0.66]
[1753985667145,9.87970297,176.23,176.19,3.44033851]
[1753985667331,9.87970297,176.23,176.19,2.78033851]
[1753985667649,9.87970297,176.23,176.2,6.33532882]
[1753985668333,9.87970297,176.24,176.21,0.66]
[1753985668846,6.091578,176.24,176.21,0.66]
[1753985669545,6.091578,176.24,176.2,5.67532882]
[1753985669745,5.67343696,176.26,176.2,5.67532882]
[1753985669943,6.091578,176.25,176.2,11.76690682]
[1753985670244,6.091578,176.25,176.21,0.66]
[1753985670451,6.091578,176.25,176.22,0.66]
[1753985670852,6.091578,176.26,176.23,0.66]
[1753985671039,6.091578,176.25,176.2,12.0600273]
[1753985671240,0.70909916,176.28,176.22,6.091578]
[1753985671446,6.091578,176.29,176.25,6.091578]
[1753985671640,6.091578,176.31,176.26,7.0443752]
[1753985671850,6.091578,176.31,176.27,0.66]
[1753985672226,6.091578,176.31,176.27,6.751578]
[1753985672427,6.091578,176.35,176.3,6.091578]
[1753985672643,0.03,176.36,176.31,6.751578]
[1753985672942,0.03,176.36,176.28,0.29241283]
[1753985672943,9.91222349,176.35,176.3,42.42]
[1753985673143,9.91222349,176.34,176.3,9.91222349]
[1753985673346,10.61222349,176.35,176.3,43.08]
[1753985673523,9.91222349,176.35,176.31,0.66]
[1753985673723,0.03,176.36,176.34,9.91222349]
[1753985673927,0.03,176.36,176.34,10.57222349]
[1753985674651,0.03,176.36,176.34,0.66]
[1753985674835,0.03,176.36,176.34,10.57222349]
[1753985675040,0.03,176.36,176.35,53.26436069]
[1753985675426,0.03,176.36,176.35,58.93490222]
[1753985675853,0.03,176.36,176.35,62.92267873]
[1753985676060,0.03,176.36,176.35,115.23490222]
[1753985676255,0.03,176.36,176.35,114.94276502]
[1753985678744,0.03,176.36,176.35,105.03054153]
[1753985678953,0.03,176.36,176.35,114.57487031]
[1753985679165,0.03,176.36,176.35,114.28276502]
[1753985679755,0.03,176.36,176.35,114.94276502]
[1753985680252,0.03,176.36,176.35,105.03054153]
[1753985680436,0.03,176.36,176.35,115.23487031]
[1753985680752,0.03,176.36,176.35,114.94276502]
[1753985683042,0.03,176.38,176.37,26.0]
[1753985683275,0.03,176.38,176.37,78.27222349]
[1753985683492,0.03,176.38,176.37,78.93222349]
[1753985683972,0.03,176.38,176.37,84.60212199]
[1753985685750,0.67,176.46,176.37,115.56155223]
[1753985685945,0.67,176.46,176.43,9.91222349]
[1753985686152,0.67,176.46,176.44,42.34]
[1753985686369,0.67,176.45,176.38,56.59167274]
[1753985686545,0.67,176.45,176.39,42.34]
[1753985686748,9.91222349,176.42,176.39,42.34]
[1753985687159,0.03,176.4,176.39,42.34]
[1753985687770,0.03,176.4,176.39,48.00925562]
[1753985687952,0.03,176.4,176.39,57.92147911]
[1753985688458,0.03,176.4,176.39,58.58147911]
[1753985688782,0.03,176.4,176.39,57.92147911]
[1753985689863,0.03,176.4,176.37,26.0]
[1753985690072,0.67,176.39,176.38,42.32]
[1753985690369,10.58222349,176.39,176.38,42.32]
[1753985690574,0.67,176.39,176.38,42.32]
[1753985691647,9.94222349,176.4,176.38,42.32]
[1753985691979,0.03,176.4,176.38,42.32]
[1753985692181,0.03,176.4,176.38,47.98952018]
[1753985692482,0.03,176.4,176.38,57.90174367]
[1753985692770,0.03,176.4,176.39,10.20403922]
[1753985692966,0.03,176.4,176.39,12.03862508]
[1753985693475,0.03,176.4,176.39,68.33862508]
[1753985694070,0.03,176.4,176.39,68.99862508]
[1753985694587,0.03,176.4,176.39,62.26107135]
[1753985694763,0.03,176.4,176.39,68.33862508]
[1753985694948,0.03,176.4,176.39,68.04680935]
[1753985695270,0.03,176.4,176.39,110.34680935]
[1753985695742,0.03,176.4,176.37,0.29181573]
[1753985695951,6.74755373,176.39,176.38,42.28]
[1753985696251,6.74755373,176.39,176.34,56.3]
[1753985696565,6.07755373,176.35,176.33,42.28]
[1753985696753,9.91786396,176.34,176.33,42.28]
[1753985697073,10.58786396,176.34,176.33,42.28]
[1753985697464,16.25877517,176.34,176.29,6.747554]
[1753985697776,9.91786396,176.31,176.3,42.28]
[1753985697977,10.58786396,176.31,176.3,42.28]
[1753985698153,0.67,176.31,176.3,42.28]
[1753985698354,10.58786396,176.31,176.3,42.28]
[1753985698569,0.67,176.33,176.3,42.28]
[1753985698770,9.91786396,176.31,176.3,42.28]
[1753985700350,10.58786396,176.31,176.3,42.28]
[1753985701594,10.58786396,176.31,176.2,56.36]
[1753985701595,10.58786396,176.31,176.29,42.26]
[1753985701748,10.58786396,176.3,176.27,42.26]
[1753985701949,9.91786396,176.28,176.27,42.26]
[1753985702159,0.67,176.28,176.27,42.26]
[1753985702361,9.91786396,176.3,176.27,42.26]
[1753985702586,0.67,176.3,176.27,42.26]
[1753985702767,10.58786396,176.3,176.27,42.26]
[1753985703155,9.91786396,176.31,176.27,42.26]
[1753985703360,9.91786396,176.3,176.27,47.93309062]
[1753985703878,10.58786396,176.3,176.27,42.26]
[1753985704080,0.67,176.3,176.27,57.8509504]
[1753985704287,10.61786396,176.29,176.25,15.59162282]
[1753985704579,0.7,176.29,176.26,42.26]
[1753985704775,10.61786396,176.29,176.26,42.26]
[1753985705178,0.7,176.29,176.26,42.26]
[1753985705485,10.61786396,176.31,176.26,57.85124401]
[1753985705657,0.7,176.32,176.26,47.93338005]
[1753985705860,10.61786396,176.34,176.29,9.91786396]
[1753985706072,9.91786396,176.3,176.26,5.67338005]
[1753985706274,9.91786396,176.27,176.22,26.06]
[1753985706450,9.91786396,176.26,176.23,42.26]
[1753985706654,9.91786396,176.26,176.22,0.06]
[1753985706851,9.91786396,176.23,176.22,0.06]
[1753985707088,10.61786396,176.23,176.22,42.32]
[1753985707777,9.91786396,176.23,176.22,42.32]
[1753985708883,0.7,176.23,176.22,0.06]
[1753985709058,17.00156706,176.23,176.22,0.06]
[1753985709462,11.3271643,176.23,176.22,0.06]
[1753985709666,0.7,176.23,176.22,0.06]
[1753985709979,10.61786396,176.23,176.22,0.06]
[1753985710162,0.7,176.23,176.22,0.06]
[1753985710362,10.61786396,176.23,176.22,0.06]
[1753985711070,16.29226672,176.23,176.22,0.06]
[1753985716187,26.21013068,176.23,176.2,0.06]
[1753985716493,9.91786396,176.21,176.2,0.06]
[1753985716984,16.78468397,176.2,176.12,0.1]
[1753985717191,6.09898173,176.13,176.12,0.1]
[1753985717668,6.79898173,176.13,176.12,0.1]
[1753985718163,6.09898173,176.13,176.12,0.1]
[1753985718659,6.09898173,176.15,176.12,0.1]
[1753985718862,9.93767945,176.14,176.12,0.1]
[1753985719062,9.93767945,176.13,176.12,0.1]
[1753985719266,10.63767945,176.13,176.12,0.1]
[1753985720205,6.37762448,176.13,176.12,0.1]
[1753985720373,16.31530393,176.13,176.12,0.1]
[1753985721804,10.63767945,176.13,176.12,0.1]
[1753985722009,6.38666388,176.15,176.12,0.1]
[1753985722306,9.93767945,176.14,176.12,0.1]
[1753985723170,9.93767945,176.13,176.12,0.1]
[1753985723577,10.63767945,176.13,176.12,0.1]
[1753985723985,11.34738251,176.13,176.12,0.1]
[1753985724191,17.02500699,176.13,176.12,0.1]
[1753985724984,16.31530393,176.13,176.12,0.1]
[1753985725988,17.02500699,176.13,176.12,0.1]
[1753985727086,16.31530393,176.13,176.12,0.1]
[1753985728998,6.37762448,176.13,176.12,0.1]
[1753985729191,16.31530393,176.13,176.12,0.1]
[1753985729386,16.31530393,176.13,176.12,0.16]
[1753985732194,42.78468397,176.11,175.97,0.66]
[1753985732473,9.93767945,176.0,175.97,0.66]
[1753985732691,9.93767945,176.01,175.97,10.59767945]
[1753985733001,9.93767945,176.01,175.98,0.66]
[1753985733218,9.93767945,176.01,175.99,0.66]
[1753985733585,43.60990458,176.08,176.0,10.59767945]
[1753985733819,0.70982396,176.1,176.06,9.93767945]
[1753985734106,9.93767945,176.13,176.08,9.93767945]
[1753985734308,9.93767945,176.09,176.03,0.29432771]
[1753985734527,9.93767945,176.09,176.04,9.93767945]
[1753985734690,9.93767945,176.1,176.05,10.59767945]
[1753985734890,9.93767945,176.11,176.06,10.59767945]
[1753985735089,9.93767945,176.11,176.07,0.66]
[1753985735299,9.93767945,176.1,176.05,9.93767945]
[1753985735504,9.93767945,176.09,176.06,0.66]
[1753985735715,9.93767945,176.08,176.04,5.68052715]
[1753985736005,9.93767945,176.07,176.04,6.34052715]
[1753985736216,9.93767945,176.06,176.03,5.68081109]
[1753985736385,9.93767945,176.07,176.04,0.66]
[1753985736590,9.93767945,176.08,176.05,0.66]
[1753985736893,42.2,176.15,176.05,0.66]
[1753985736894,9.93767945,176.09,176.06,0.66]
[1753985737109,9.93767945,176.08,176.06,0.66]
[1753985737296,9.93767945,176.07,176.03,5.68081109]
[1753985737506,9.93767945,176.07,176.03,6.34081109]
[1753985738191,5.67920621,176.09,176.02,5.68112399]
[1753985738192,9.93767945,176.06,176.02,5.68112399]
[1753985738388,9.93767945,176.03,175.98,26.0]
[1753985738593,9.93767945,176.02,175.99,0.66]
[1753985738791,0.70982396,176.1,175.99,0.66]
[1753985738792,0.70982396,176.1,176.01,9.93767945]
[1753985738990,0.68,176.12,176.06,9.93767945]
[1753985738991,0.70974335,176.12,176.06,9.93767945]
[1753985739213,2.96181227,176.15,176.07,0.95426379]
[1753985739214,9.93767945,176.11,176.07,0.95426379]
[1753985739399,9.93767945,176.08,176.04,47.86027009]
[1753985739908,0.68,176.1,176.04,48.52027009]
[1753985739909,9.93767945,176.07,176.04,48.52027009]
[1753985740408,9.93767945,176.05,176.02,42.18]
[1753985740611,9.93767945,176.03,176.02,42.18]
[1753985740819,9.93767945,176.05,176.02,42.84]
[1753985741311,9.93767945,176.04,176.02,42.18]
[1753985741500,9.93767945,176.03,176.0,42.18]
[1753985741687,0.68,176.07,176.01,0.66]
[1753985741889,9.93767945,176.03,176.01,0.66]
[1753985742189,9.93767945,176.05,176.0,52.11767945]
[1753985742396,9.93767945,176.05,176.02,0.66]
[1753985742596,9.93767945,176.04,176.01,5.68147737]
[1753985743111,9.93767945,176.04,176.0,42.84]
[1753985743112,9.93767945,176.02,176.0,42.18]
[1753985743318,9.93767945,176.02,175.98,5.68220547]